[Event "European Corporate Championship 2022"]
[Site "Rotterdam"]
[Date "2022.06.18"]
[Round "3.1"]
[White "Barski, Radoslaw"]
[Black "Nijboer, Friso"]
[Result "0-1"]
[ECO "B53"]
[WhiteElo "2434"]
[BlackElo "2464"]
[Annotator "TA"]
[PlyCount "102"]
[EventDate "2022.06.18"]
[EventType "team-tourn"]
[EventCountry "NED"]
[SourceTitle "playchess.com"]
[Source "ChessBase"]
[SourceQuality "1"]
[TimeControl "900+5"]

{[%evp 18,102,-8,-20,0,-7,4,-34,0,0,0,0,0,-191,-192,-191,-147,-159,-148,-142,-142,-125,-124,-193,-187,-193,-191,-229,-208,-235,-232,-207,-211,-431,-321,-5007,-408,-652,-242,-224,-140,-191,-179,-179,-92,-121,-90,-88,-83,-114,-81,-88,-51,-72,-67,-73,-72,-86,0,-73,-71,-529,-75,-80,-11,-86,-83,-115,-93,-329,-350,-330,-323,-200,-79,-88,-19,-18,-24,-25,-19,-29992,-29993,-29997,-29998,-29998,-29999]} 1. e4 {[%emt 0:00:03]} c5 {[%emt 0:00:01]} 2. Nc3 {[%emt 0:00:07]} Nc6 {[%emt 0:00:02]} 3. Nf3 {[%emt 0:00:02]} Nf6 {[%emt 0:00:04]} 4. Bb5 {[%emt 0:00:05]} d6 {[%emt 0:00:30]} 5. d4 {[%emt 0:00:59]} cxd4 {[%emt 0:00:08]} 6. Qxd4 {[%emt 0:00:02]} Bd7 {[%emt 0:04:08]} 7. Bxc6 {[%emt 0:00:02]} Bxc6 {[%emt 0:00:01]} 8. Bg5 {[%emt 0:00:02]} e6 {[%emt 0:01:50]} 9. O-O-O {[%emt 0:00:02]} Be7 {[%emt 0:00:01]} 10. Kb1 {[%emt 0:00:31] 10.Qd3 gains popularity.} Qc7 {[%emt 0:00:20] B53: Sicilian: 2...d6: Lines with Qxd4.} 11. Qd3 {[%emt 0:00:48]} a6 {[%emt 0:00:56]} 12. Nd4 {[%emt 0:05:14] [#]} Nxe4 $146 {[%emt 0:04:31] Black is slightly better.} ({Predecessor:} 12... O-O 13. f4 h6 14. h4 b5 15. e5 dxe5 16. fxe5 Nd5 17. Nxc6 hxg5 18. Nxd5 exd5 19. hxg5 g6 20. Qh3 {1-0 (20) Sliwicka,A (2337)-Fistek,D (2218) Katowice 2017}) 13. Nxe4 {[%emt 0:05:07]} ({Don't blunder} 13. Bxe7 $2 Nxf2 14. Qg3 (14. Nxe6 $2 fxe6 15. Bxd6 Nxd3 $19) 14... Nxh1 15. Qxg7 Kxe7 $19) 13... Bxe4 {[%emt 0:00:03][%mdl 64] Remove Defender} 14. Qxe4 {[%emt 0:00:02][%cal Od4e6]} Bxg5 {[%emt 0:00:01]} 15. Nxe6 $2 {[%emt 0:00:01]} fxe6 $19 {[%emt 0:00:02]} 16. Qxe6+ {[%emt 0:00:01]} Qe7 {[%emt 0:00:09]} 17. Qc4 {[%emt 0:02:08]} Qf7 {[%emt 0:00:14]} 18. Rhe1+ {[%emt 0:00:01]} Kf8 {[%emt 0:00:01][%cal Be8f8,Bf8g8,Bg8h7][%mdl 32]} 19. Qb4 {[%emt 0:00:39]} h5 {[%emt 0:01:20]} (19... Qxf2 $2 20. Rf1 Qxf1 21. Rxf1+ Bf6 22. Qxd6+ Ke8 23. Qe6+ Kf8 24. g4 $18) 20. Qxd6+ {[%emt 0:00:29]} (20. f4 $17 {keeps fighting.} Bf6 21. Rxd6) 20... Kg8 {[%emt 0:00:03]} 21. Qc5 {[%emt 0:00:04]} Bf6 {[%emt 0:00:07]} 22. a3 {[%emt 0:00:11]} Kh7 {[%emt 0:00:23]} 23. Rd5 {[%emt 0:00:02]} Rhe8 {[%emt 0:00:00]} 24. Rxh5+ {[%emt 0:00:12]} Kg8 {[%emt 0:00:01][%cal Re8e1]} 25. Rf1 {[%emt 0:00:09]} (25. Rd1) 25... Rac8 {[%emt 0:01:25]} 26. Qa5 {[%emt 0:00:04] [#]} (26. Qd5 Qxd5 27. Rxd5) 26... g6 {[%emt 0:00:41]} (26... Rxc2 $142 $3 {[%mdl 512]} 27. Kxc2 Qc4+ 28. Kb1 Qxf1+ 29. Ka2 Qc4+ 30. Kb1 Qd3+ 31. Ka2 Re2 32. Qd5+ Qxd5+ 33. Rxd5 Rxb2+ 34. Ka1 Rb5+ 35. Ka2 Rxd5) 27. Rh3 {[%emt 0:00:01] [#]} (27. Rd5 $142 Re2 28. Rc5) 27... Qc4 $2 {[%emt 0:00:01]} (27... Rxc2 $3 {[%mdl 512]} 28. Kxc2 Qc4+ 29. Rc3 Bxc3 30. Qxc3 Qe2+ 31. Kb3 Qxf1) 28. Rc1 {[%emt 0:00:07]} Re5 {[%emt 0:00:10]} 29. Qd2 {[%emt 0:00:06]} (29. Qb6 $17 Qc6 30. Rb3) 29... Rb5 {[%emt 0:00:03]} 30. c3 {[%emt 0:00:01]} Qe4+ {[%emt 0:00:05]} (30... Bg5 $19 31. Qc2 Rc6) 31. Ka1 {[%emt 0:00:03]} Bg7 {[%emt 0:00:01] Against Qh6} 32. Rg3 {[%emt 0:00:09]} Qf5 {[%emt 0:00:06]} 33. Rf3 {[%emt 0:00:01]} Qe6 {[%emt 0:00:01]} 34. Re1 {[%emt 0:00:03]} Re5 {[%emt 0:00:01]} 35. Rfe3 {[%emt 0:00:05]} Rxe3 {[%emt 0:00:01]} 36. Rxe3 {[%emt 0:00:01]} Qf7 {[%emt 0:00:01] White must now prevent ...Bh6.} 37. Rf3 {[%emt 0:00:02]} Qe6 {[%emt 0:00:03]} 38. Re3 $1 {[%emt 0:00:04]} Qc6 {[%emt 0:00:01]} 39. f3 $2 {[%emt 0:00:09][%mdl 8192]} (39. f4 $17 {is tougher.}) 39... Rf8 $2 {[%emt 0:00:02]} (39... Bh6 $19 {has better winning chances.} 40. Qf2 Bxe3 41. Qxe3 Rd8) 40. Re4 $17 {[%emt 0:00:01]} Bf6 {[%emt 0:00:15]} (40... Rf5 $17) 41. Qc2 {[%emt 0:00:01]} (41. Qh6 $11) 41... Kg7 {[%emt 0:00:37]} 42. h4 {[%emt 0:00:04]} Re8 {[%emt 0:00:00]} 43. Rg4 $2 {[%emt 0:00:08]} (43. Rxe8 $17 {was called for.} Qxe8 44. Qf2) 43... Re1+ $19 {[%emt 0:00:00]} 44. Ka2 {[%emt 0:00:00] [#]} Qe6+ $1 {[%emt 0:00:00]} 45. c4 {[%emt 0:00:01]} Qf7 {[%emt 0:00:03] Active counter play!} (45... Re2 $19 46. Qxg6+ Kf8 47. Qh6+ Ke7 48. Qh7+ Kd6 49. Qxb7 Rxb2+ 50. Qxb2 Bxb2 51. Kxb2 Qe3) 46. f4 {[%emt 0:00:11]} Kh6 {[%emt 0:00:06]} ({Black should play} 46... Kf8 $17 {[%cal Of6b2] And now ...Bxb2! would win.} 47. f5 gxf5 48. Qxf5 Re2 49. Qc5+ Qe7 50. Qc8+ Qd8 51. Qxd8+ Bxd8) 47. f5 $11 {[%emt 0:00:14]} gxf5 {[%emt 0:00:12]} (47... g5 48. Qd2 Qh5 49. Rxg5 Bxg5 50. hxg5+ (50. Qxe1 Qxh4 51. Qe6+ Kg7 $11) 50... Qxg5 51. Qxe1 $18) 48. Qxf5 {[%emt 0:00:01][%cal Oh4h5] Hoping for h5!} Re2 {[%emt 0:00:06] Really sharp!} 49. a4 $2 {[%emt 0:00:15][%mdl 8192]} (49. Qf4+ $11 Kh7 50. Qf5+ Kh8 51. Qc8+ Qe8 52. Qxe8+ Rxe8 53. Rg6) 49... Rxb2+ {[%emt 0:00:04] Black mates.} 50. Ka3 {[%emt 0:00:01]} Qe7+ {[%emt 0:00:01]} 51. c5 {[%emt 0:00:05]} Qe3+ {[%emt 0:00:01] Weighted Error Value: White=0.82/Black=0.64} 0-1

[Event "European Corporate Championship 2022"]
[Site "Rotterdam"]
[Date "2022.06.18"]
[Round "3.2"]
[White "De Vreugt, Dennis"]
[Black "Celinski, Kamil"]
[Result "1-0"]
[ECO "A45"]
[WhiteElo "2393"]
[BlackElo "1907"]
[Annotator "TA"]
[PlyCount "77"]
[EventDate "2022.06.18"]
[EventType "team-tourn"]
[EventCountry "NED"]
[SourceTitle "playchess.com"]
[Source "ChessBase"]
[SourceQuality "1"]
[TimeControl "900+5"]

{[%evp 9,76,49,42,19,64,52,54,14,19,-8,0,0,5,-30,0,-222,-209,-201,-37,-27,12,1,43,35,45,0,35,33,54,55,52,35,33,40,52,34,56,-88,-78,-91,-81,-130,-88,-110,-120,-125,-55,-62,143,126,114,118,241,119,261,115,712,749,716,671,5473,2766,29990,29991,29997,29998,29998,29999,29999]} 1. d4 {[%emt 0:00:01]} Nf6 {[%emt 0:00:01]} 2. g3 {[%emt 0:00:02]} c5 {[%emt 0:00:05]} 3. d5 {[%emt 0:00:01]} b5 {[%emt 0:00:19]} 4. Bg2 {[%emt 0:00:02]} Bb7 {[%emt 0:00:01]} 5. e4 {[%emt 0:00:01]} d6 {[%emt 0:00:02]} 6. a4 {[%emt 0:00:34] A45: Trompowsky Attack.} Qa5+ {[%emt 0:00:26]} 7. Bd2 {[%emt 0:00:33]} b4 {[%emt 0:00:01]} 8. c4 {[%emt 0:00:02] White is slightly better.} g6 {[%emt 0:00:13] [#]} 9. Qc1 $146 {[%emt 0:00:12]} ({Predecessor:} 9. Ne2 Bg7 10. Ra2 O-O 11. O-O Nbd7 12. b3 Rfe8 13. Bf4 Nh5 14. Be3 Qc7 15. g4 {1-0 (36) Stupak,K (2458)-Tihonov,J (2460) Minsk 2009}) 9... Bg7 {[%emt 0:00:28]} 10. Bh6 {[%emt 0:00:07]} O-O {[%emt 0:00:55]} 11. Ne2 {[%emt 0:00:02]} Nbd7 {[%emt 0:00:11] Threatens to win with ...Ne5.} 12. h4 $2 {[%emt 0:00:37]} (12. Bxg7 $11 Kxg7 13. Nd2) 12... Bxh6 {[%emt 0:00:54]} 13. Qxh6 {[%emt 0:00:02]} Ng4 $2 {[%emt 0:00:48]} ({Better is} 13... Ne5 $19 {White must now prevent ...Nd3+.} 14. O-O Nxc4) 14. Qd2 {[%emt 0:00:33]} h5 {[%emt 0:00:19]} (14... Nde5 $5 15. b3 Qd8 $11) 15. O-O {[%emt 0:00:34]} Nde5 {[%emt 0:00:46]} 16. b3 {[%emt 0:00:06]} Kh7 {[%emt 0:00:42]} 17. Qc2 {[%emt 0:00:55]} Bc8 {[%emt 0:00:13]} 18. Nd2 {[%emt 0:00:01]} Nh6 {[%emt 0:00:12]} 19. Rae1 {[%emt 0:01:12]} Qd8 {[%emt 0:00:42]} 20. Nc1 {[%emt 0:00:27]} Bd7 {[%emt 0:01:19]} 21. f4 {[%emt 0:00:15]} Neg4 {[%emt 0:00:03]} 22. Nd3 {[%emt 0:00:01]} Rb8 {[%emt 0:01:01]} 23. e5 {[%emt 0:02:44]} (23. f5 $14) 23... Nf5 $17 {[%emt 0:00:11]} 24. Ne4 {[%emt 0:00:10]} Nge3 {[%emt 0:00:35]} 25. Ng5+ {[%emt 0:00:24]} (25. Qf2 $142 Nxf1 26. Kxf1) 25... Kh6 {[%emt 0:00:49]} 26. Qf2 {[%emt 0:00:44]} Nxf1 {[%emt 0:00:45]} 27. Bxf1 {[%emt 0:00:15]} f6 {[%emt 0:00:39]} (27... Nd4 $17 28. e6 fxe6 29. dxe6 Bc6) 28. Nf3 $15 {[%emt 0:01:25]} fxe5 $2 {[%emt 0:00:12]} (28... e6 $1 $15 {stays ahead.}) 29. fxe5 $16 {[%emt 0:00:02]} Kg7 {[%emt 0:00:15][%cal Of5d4]} 30. Nf4 {[%emt 0:00:21]} dxe5 {[%emt 0:01:14]} (30... Nh6 $16 {was called for.}) 31. Rxe5 {[%emt 0:01:41]} (31. Nxe5 $18 {and the rest is easy.} Rb6 32. Qxc5) 31... Qc7 {[%emt 0:00:19] [#]} (31... Qb6 $16) 32. Bd3 {[%emt 0:00:14]} (32. d6 $1 $18 {[%cal Rd6c7] is the precise move to win.} Qb6 33. dxe7) 32... Rbe8 $2 {[%emt 0:00:08][%mdl 8192] [#]} (32... Rf6 $16) 33. Re6 $1 $18 {[%emt 0:01:17][%mdl 512]} Rf6 {[%emt 0:01:18]} 34. Bxf5 {[%emt 0:00:02][%mdl 64] Deflection} Rxf5 {[%emt 0:00:24]} 35. Rxg6+ {[%emt 0:00:17]} Kf7 {[%emt 0:00:57]} 36. Ng5+ {[%emt 0:00:07] Pair of Knights! White mates.} Kf8 {[%emt 0:00:01]} 37. Nfe6+ {[%emt 0:00:05]} Bxe6 {[%emt 0:00:05]} 38. Nxe6+ {[%emt 0:00:01]} Kf7 {[%emt 0:00:01]} 39. Qxf5# {[%emt 0:02:11] Quite a comeback for White.  Weighted Error Value: White=0.46/Black=0.66} 1-0

[Event "European Corporate Championship 2022"]
[Site "Rotterdam"]
[Date "2022.06.18"]
[Round "3.3"]
[White "Wisniewski, Jacek"]
[Black "Jonkman, Harmen"]
[Result "1-0"]
[ECO "C50"]
[WhiteElo "1850"]
[BlackElo "2384"]
[Annotator "TA"]
[PlyCount "80"]
[EventDate "2022.06.18"]
[EventType "team-tourn"]
[EventCountry "NED"]
[SourceTitle "playchess.com"]
[Source "ChessBase"]
[SourceQuality "1"]
[TimeControl "900+5"]

{[%evp 17,80,-41,0,10,13,21,29,-67,-69,-78,-72,-110,-91,-106,-97,-164,-118,-127,-108,-113,-41,-140,-122,-133,-140,-165,-158,-256,-231,-243,-225,-227,-197,-350,-342,-361,-352,-359,-358,-340,-297,-225,0,0,0,0,0,0,0,0,568,549,29958,5708,29949,10320,29971,29970,29973,29975,29976,29977,29974,29965,29941]} 1. e4 {[%emt 0:00:02]} e5 {[%emt 0:00:02]} 2. Nf3 {[%emt 0:00:03]} Nc6 {[%emt 0:00:02]} 3. Bc4 {[%emt 0:00:10]} Bc5 {[%emt 0:00:03]} 4. O-O {[%emt 0:00:04]} Nf6 {[%emt 0:00:02]} 5. d4 {[%emt 0:00:06]} Bxd4 {[%emt 0:00:09]} 6. Nxd4 {[%emt 0:00:03]} Nxd4 {[%emt 0:00:02]} 7. f4 {[%emt 0:00:02]} d6 {[%emt 0:00:02]} 8. fxe5 {[%emt 0:00:03]} dxe5 {[%emt 0:00:01]} 9. Bg5 {[%emt 0:00:05]} Be6 {[%emt 0:04:01]} (9... Qe7 $15 10. Na3 h5) 10. Na3 $11 {[%emt 0:00:05] C50: Hungarian Defence and Giuoco Pianissimo.} Qe7 {[%emt 0:00:45]} 11. c3 {[%emt 0:00:03]} Nc6 {[%emt 0:00:20] And now ...Bxc4 would win. Pair of Knights!} 12. b4 {[%emt 0:00:45]} (12. Rf2 $11) 12... a5 $1 $15 {[%emt 0:00:56]} 13. Bxe6 {[%emt 0:02:21]} fxe6 {[%emt 0:00:11]} 14. b5 {[%emt 0:01:32]} Nd8 {[%emt 0:01:35] [#]} 15. Bxf6 $146 {[%emt 0:03:24]} ({Predecessor:} 15. Nc4 Qc5+ 16. Ne3 Nf7 17. Bxf6 Qxe3+ 18. Kh1 gxf6 19. Qg4 Ke7 20. Rf3 Qg5 21. Qh3 {0-1 (31) Struck,L (1805)-Bock,T (1654) Playchess.com INT 2020}) 15... gxf6 {[%emt 0:00:06]} 16. Qa4 {[%emt 0:00:16]} (16. Qh5+ $17 Nf7 17. Nc2) 16... O-O {[%emt 0:00:32]} ({Black should play} 16... b6 $19 17. Rad1 Nb7) 17. Nc4 $17 {[%emt 0:00:27]} Nf7 {[%emt 0:01:38]} 18. Kh1 {[%emt 0:00:27]} Nd6 {[%emt 0:00:32]} (18... Qc5 $17 19. Rab1 (19. Rxf6 Ng5 $17) 19... b6) 19. Ne3 {[%emt 0:00:27]} ({Better is} 19. Nxd6 $15 Qxd6 20. Rad1) 19... b6 {[%emt 0:00:45]} 20. Rae1 {[%emt 0:00:57]} Kh8 {[%emt 0:00:21]} 21. Ng4 {[%emt 0:00:25]} Qg7 {[%emt 0:00:12]} 22. h3 {[%emt 0:00:30]} (22. Nf2 $17) 22... Rae8 {[%emt 0:00:12]} 23. c4 {[%emt 0:00:23]} f5 {[%emt 0:00:09]} 24. Nf2 {[%emt 0:00:33]} Qg3 {[%emt 0:02:12] Hoping for ...Rg8.} 25. c5 $2 {[%emt 0:00:27] [#]} (25. Qc2) 25... Rg8 $1 $19 {[%emt 0:00:20][%csl Gg8][%cal Rg3g2]} 26. Rg1 {[%emt 0:00:14][%cal Bf1g1,Bg1g2,Bg2c2][%mdl 32]} Qxf2 {[%emt 0:00:16]} (26... bxc5 $2 27. Ref1 $19) 27. cxd6 {[%emt 0:00:16] [#]} Rxg2 $3 {[%emt 0:00:21][%mdl 512]} 28. Rxg2 {[%emt 0:00:09]} Qxe1+ {[%emt 0:00:01]} 29. Kh2 {[%emt 0:00:58]} Qxe4 {[%emt 0:00:36]} (29... cxd6 $19 30. exf5 Qb4 31. Qxb4 axb4 32. fxe6 Rxe6) 30. Qxe4 $11 {[%emt 0:00:20]} fxe4 {[%emt 0:00:01]} 31. dxc7 $19 {[%emt 0:00:02][%mdl 4096] Endgame KR-KR} e3 {[%emt 0:00:53] Against Rd2} 32. Rc2 {[%emt 0:00:01]} Rc8 {[%emt 0:00:18][%cal Oe3e2]} 33. Kg2 {[%emt 0:00:01] Kf3 would kill now.} Kg7 $2 {[%emt 0:00:02][%mdl 8192]} (33... e4 $1 $11 {and Black has nothing to worry.}) 34. Kf3 $18 {[%emt 0:00:01]} Kf7 {[%emt 0:00:02]} 35. Kxe3 {[%emt 0:00:02] Intending Ke4 and mate.} Ke7 {[%emt 0:00:01]} 36. Ke4 {[%emt 0:00:05]} Kd7 {[%emt 0:00:13]} 37. Kxe5 {[%emt 0:00:06] White mates.} a4 {[%emt 0:00:05]} 38. a3 {[%emt 0:00:19]} h5 {[%emt 0:00:02]} 39. h4 {[%emt 0:00:01]} Ke7 {[%emt 0:00:19]} 40. Rc6 {[%emt 0:02:10]} Kd7 {[%emt 0:00:05] Weighted Error Value: White=0.26 (precise) /Black=0.85} 1-0

[Event "European Corporate Championship 2022"]
[Site "Rotterdam"]
[Date "2022.06.18"]
[Round "3.6"]
[White "Schouten, Jordy"]
[Black "Oudshoorn, Arres"]
[Result "0-1"]
[ECO "B22"]
[WhiteElo "2121"]
[BlackElo "2137"]
[Annotator "TA"]
[PlyCount "102"]
[EventDate "2022.06.18"]
[EventType "team-tourn"]
[EventCountry "NED"]
[SourceTitle "playchess.com"]
[Source "ChessBase"]
[SourceQuality "1"]
[TimeControl "900+5"]

{[%evp 12,102,17,18,40,31,47,48,147,177,147,152,214,209,211,188,203,127,238,246,361,294,247,224,352,117,166,107,107,106,83,46,35,39,34,32,29,0,0,-11,-20,-129,-137,-138,-125,-276,-290,-308,-292,-314,-275,-288,-211,-404,-255,-738,-606,-657,-635,-623,-605,-884,-843,-883,-871,-870,-869,-872,-872,-873,-827,-1162,-1127,-1166,-1108,-1587,-1560,-2237,-2160,-2652,-1635,-7457,-5887,-2277,-1574,-5887,-5583,-5570,-5487,-5204,-5022,-4710,-4710]} 1. e4 {[%emt 0:00:02]} c5 {[%emt 0:00:00]} 2. c3 {[%emt 0:00:01]} d5 {[%emt 0:00:02]} 3. exd5 {[%emt 0:00:01]} Qxd5 {[%emt 0:00:00]} 4. d4 {[%emt 0:00:01]} Nc6 {[%emt 0:00:18]} 5. Nf3 {[%emt 0:00:02]} Bg4 {[%emt 0:00:06]} 6. dxc5 {[%emt 0:00:01]} Qxd1+ {[%emt 0:00:40]} 7. Kxd1 {[%emt 0:00:02]} e5 {[%emt 0:00:00] B22: Sicilian: 2 c3.} 8. b4 {[%emt 0:00:08]} e4 {[%emt 0:00:53][%mdl 64] Pin} 9. h3 {[%emt 0:00:01]} O-O-O+ {[%emt 0:02:10]} (9... Be6 $14 10. Ng5 Bf5) 10. Kc2 $16 {[%emt 0:00:11]} Bf5 {[%emt 0:00:49]} 11. g4 {[%emt 0:00:04][%cal Bg2g4,Bg4g5][%mdl 32]} Bg6 {[%emt 0:03:24]} (11... Be6 $16) 12. Nh4 $18 {[%emt 0:00:10]} Be7 {[%emt 0:00:29]} 13. Nxg6 {[%emt 0:00:04]} hxg6 {[%emt 0:00:00] [#]} 14. Bf4 $146 {[%emt 0:00:37] Against Ne5} ({Predecessor:} 14. Nd2 Nf6 15. g5 Nd5 16. Nxe4 f5 17. gxf6 gxf6 18. Bg2 f5 19. Nd6+ Bxd6 20. Bxd5 {1-0 (31) Pecnik,L (2334)-Doncevic,D (2230) Pula 2019}) 14... f5 {[%emt 0:00:22]} (14... Nf6 $16 {is a better defense.}) 15. Bc4 {[%emt 0:00:10]} Rf8 {[%emt 0:01:03]} (15... Nf6 $142 16. Be6+ Nd7) 16. g5 {[%emt 0:02:49]} Rh4 {[%emt 0:00:48]} 17. Bg3 {[%emt 0:00:06]} Rh5 {[%emt 0:00:00]} (17... Bxg5 {was called for.} 18. Na3 Rh8 19. Be6+ Kd8) 18. Be2 $2 {[%emt 0:02:37]} (18. Be6+ $18 Kd8 19. b5) 18... Rh8 {[%emt 0:01:36]} (18... Rxg5 $16 19. h4 Rxg3 20. fxg3 Nf6) 19. f4 {[%emt 0:02:44]} (19. Na3 $18) 19... exf3 $16 {[%emt 0:00:27]} 20. Bxf3 {[%emt 0:00:02]} Bxg5 {[%emt 0:00:01]} 21. Na3 {[%emt 0:00:15]} f4 $1 {[%emt 0:00:56]} 22. Bf2 {[%emt 0:00:02] This bishop pair is nice.} Ne5 {[%emt 0:00:03] Inhibits Nc4.} 23. Bd5 {[%emt 0:00:22]} Nf6 {[%emt 0:00:20][%cal Bg8f6,Bf6e4,Be4g3,Bg3h1][%mdl 32]} 24. Be6+ {[%emt 0:00:01]} Kb8 {[%emt 0:00:01]} 25. Rad1 {[%emt 0:00:43]} Re8 {[%emt 0:00:39]} 26. Bb3 {[%emt 0:00:32] [#]} (26. h4 $11 Bh6 27. Bh3) 26... Nf3 $1 $17 {[%emt 0:00:34]} 27. Bc4 {[%emt 0:00:58] Inhibits Re2+.} Ne4 $36 {[%emt 0:00:08][%mdl 2048] Black is in control.} 28. Bd4 {[%emt 0:00:23] This costs White the game.} (28. Be1 $17 {only move.}) 28... Ng3 $19 {[%emt 0:00:25]} ({Wrong is} 28... Nxd4+ $2 29. Rxd4 Bf6 30. Rd7 $17) 29. Bxg7 {[%emt 0:02:48] [#]} Rh7 {[%emt 0:00:04]} ({Worse is} 29... Nxh1 30. Bxh8 Rxh8 31. Rxh1 $11) 30. Rd7 {[%emt 0:00:01][%cal Oc4d5]} Nxh1 {[%emt 0:00:26]} 31. Bd5 {[%emt 0:00:08]} Re7 {[%emt 0:00:18]} (31... Rxh3 32. Rxb7+ Kc8 33. Nb5 Re2+ 34. Kb3 $18) 32. Rd8+ {[%emt 0:00:55]} Kc7 {[%emt 0:00:01]} 33. Rd6 $2 {[%emt 0:00:09]} (33. Ra8 Ne1+ 34. Kb3 Rexg7 35. Be6) 33... Rexg7 {[%emt 0:00:14] Black is clearly winning.} 34. Bxf3 {[%emt 0:00:05]} Rxh3 {[%emt 0:00:06]} 35. Nb5+ {[%emt 0:00:02]} Kb8 {[%emt 0:00:00]} 36. Rd5 {[%emt 0:00:04]} Rxf3 {[%emt 0:00:04]} 37. Rxg5 {[%emt 0:00:01]} Rf2+ {[%emt 0:00:05]} 38. Kb3 {[%emt 0:00:01]} a6 {[%emt 0:00:04]} 39. Nd4 {[%emt 0:00:01]} f3 {[%emt 0:00:12] Threatens to win with ...Rf1.} 40. Rg1 {[%emt 0:00:01]} Rh7 {[%emt 0:00:03]} 41. Rxg6 {[%emt 0:00:07]} Rg2 {[%emt 0:00:05]} 42. Rf6 {[%emt 0:00:05]} f2 {[%emt 0:00:11] aiming for ...Ng3.} 43. b5 {[%emt 0:00:00]} axb5 {[%emt 0:00:07] Hoping for ...Ng3.} 44. Rf8+ {[%emt 0:00:07]} Kc7 {[%emt 0:00:01]} 45. Nxb5+ {[%emt 0:00:03]} Kc6 {[%emt 0:00:35]} 46. Kc4 {[%emt 0:00:03]} Rg4+ {[%emt 0:00:00]} 47. Nd4+ {[%emt 0:00:02]} Kc7 {[%emt 0:00:00] ...Rg1 is the strong threat.} 48. Kd5 {[%emt 0:00:42]} Rg5+ {[%emt 0:00:00]} 49. Kc4 {[%emt 0:00:02]} Rg1 {[%emt 0:00:00]} 50. Kd5 {[%emt 0:00:18]} f1=Q {[%emt 0:00:25]} 51. Ne6+ {[%emt 0:00:01]} Kd7 {[%emt 0:00:00] Weighted Error Value: White=0.69/Black=0.25 (precise)} 0-1

[Event "European Corporate Championship 2022"]
[Site "Rotterdam"]
[Date "2022.06.18"]
[Round "3.7"]
[White "Lie, Michael"]
[Black "IJzermans, Cees"]
[Result "1-0"]
[ECO "A45"]
[WhiteElo "1798"]
[BlackElo "2115"]
[Annotator "NA RC"]
[PlyCount "75"]
[EventDate "2022.06.18"]
[EventType "team-tourn"]
[EventCountry "NED"]
[SourceTitle "playchess.com"]
[Source "ChessBase"]
[SourceQuality "1"]
[TimeControl "900+5"]

1. d4 {[%emt 0:00:02]} Nf6 {[%emt 0:00:02]} 2. Bg5 {[%emt 0:00:02]} e6 {[%emt 0:00:01]} 3. e4 {[%emt 0:00:04]} h6 {[%emt 0:00:02]} 4. Bxf6 {[%emt 0:00:02]} Qxf6 {[%emt 0:00:01]} 5. c3 {[%emt 0:00:02]} e5 {[%emt 0:00:01]} 6. Nf3 {[%emt 0:00:20]} d6 {[%emt 0:00:11]} 7. Be2 {[%emt 0:00:26]} Nc6 {[%emt 0:00:07]} 8. O-O {[%emt 0:00:06]} Qg6 {[%emt 0:00:04]} 9. Re1 {[%emt 0:03:39]} Bd7 {[%emt 0:00:03]} 10. Bb5 {[%emt 0:00:59]} O-O-O {[%emt 0:00:26]} 11. d5 {[%emt 0:00:36]} Nb8 {[%emt 0:00:22]} 12. Bxd7+ {[%emt 0:00:03]} Nxd7 {[%emt 0:00:03]} 13. c4 {[%emt 0:00:28]} Be7 {[%emt 0:00:10]} 14. Nc3 {[%emt 0:00:10]} f5 {[%emt 0:00:20]} 15. Qc2 {[%emt 0:00:21]} f4 {[%emt 0:01:10]} 16. b4 {[%emt 0:00:06]} Qf7 {[%emt 0:00:21]} 17. a4 {[%emt 0:00:05]} g5 {[%emt 0:00:02]} 18. Nb5 {[%emt 0:00:04]} a6 {[%emt 0:00:03]} 19. Nc3 {[%emt 0:01:04]} g4 {[%emt 0:00:04]} 20. Nd2 {[%emt 0:00:03]} f3 {[%emt 0:00:09]} 21. g3 {[%emt 0:00:06]} h5 {[%emt 0:00:11]} 22. Nf1 {[%emt 0:01:10]} h4 {[%emt 0:00:05]} 23. a5 {[%emt 0:00:22]} hxg3 {[%emt 0:00:03]} 24. fxg3 {[%emt 0:00:02]} Rdf8 {[%emt 0:00:30]} 25. Qf2 {[%emt 0:01:21]} Nf6 {[%emt 0:00:42]} 26. b5 {[%emt 0:00:14]} Nh7 {[%emt 0:00:02]} 27. bxa6 {[%emt 0:01:02]} bxa6 {[%emt 0:00:02]} 28. Nd1 {[%emt 0:03:28]} Ng5 {[%emt 0:00:14]} 29. Kh1 {[%emt 0:00:32]} Nh3 {[%emt 0:00:18]} 30. Qa7 {[%emt 0:00:03]} Bd8 {[%emt 0:00:06]} 31. Nf2 {[%emt 0:00:06]} Kd7 {[%emt 0:00:12]} 32. Ra2 {[%emt 0:00:05]} Nxf2+ {[%emt 0:00:32]} 33. Rxf2 {[%emt 0:00:02]} Bg5 {[%emt 0:00:15]} 34. Qxa6 {[%emt 0:00:05]} Rb8 {[%emt 0:00:03]} 35. Qc6+ {[%emt 0:00:05]} Kc8 {[%emt 0:00:04]} 36. a6 {[%emt 0:00:03]} Be3 {[%emt 0:02:58]} 37. Rxe3 {[%emt 0:00:09]} Rxh2+ {[%emt 0:00:18]} 38. Rxh2 {[%emt 0:00:38]} 1-0